bitfinex/quotes_BTCUSD_20251230
["timestamp","ask_amount","ask_price","bid_price","bid_amount"]
[1767104325200,0.0004,88108.0,88102.0,0.01135048]
[1767104325579,0.0004,88108.0,88101.0,0.0113506]
[1767104325763,0.0004,88108.0,88098.0,0.0114]
[1767104325764,0.0004,88108.0,88098.0,0.02275099]
[1767104325969,0.0004,88108.0,88098.0,0.0114]
[1767104326390,0.0004,88108.0,88098.0,0.02275099]
[1767104326568,0.0004,88106.0,88098.0,0.0114]
[1767104327006,0.01135048,88102.0,88098.0,0.0114]
[1767104327190,0.01135035,88103.0,88098.0,0.0114]
[1767104327389,0.01135022,88104.0,88098.0,0.0114]
[1767104327612,0.0113506,88101.0,88099.0,0.0114]
[1767104327922,0.01135048,88102.0,88099.0,0.0114]
[1767104328145,0.0113506,88101.0,88100.0,0.0114]
[1767104328547,0.01174996,88106.0,88100.0,0.0114]
[1767104328847,0.01135009,88105.0,88100.0,0.0114]
[1767104329641,0.06810217,88103.0,88100.0,0.0114]
[1767104329956,0.05675291,88102.0,88100.0,0.01000584]
[1767104330459,0.01135035,88103.0,88100.0,0.01000584]
[1767104331018,0.06810257,88103.0,88100.0,0.01000584]
[1767104331234,0.01135035,88103.0,88100.0,0.01000584]
[1767104331438,0.0113506,88101.0,88098.0,0.0114]
[1767104332961,0.01135048,88102.0,88098.0,0.0114]
[1767104333139,0.0113506,88101.0,88098.0,0.0114]
[1767104333457,0.01135048,88102.0,88098.0,0.0114]
[1767104333952,0.0113506,88101.0,88098.0,0.0114]
[1767104334332,0.01135048,88102.0,88098.0,0.0114]
[1767104334737,0.01135009,88105.0,88098.0,0.0114]
[1767104334941,0.01135022,88104.0,88098.0,0.0114]
[1767104335139,0.01135009,88105.0,88098.0,0.0114]
[1767104335558,0.01135022,88104.0,88098.0,0.0114]
[1767104336165,0.01135035,88103.0,88098.0,0.0114]
[1767104338698,0.06810066,88105.0,88098.0,0.0114]
[1767104338699,0.01135009,88105.0,88098.0,0.0114]
[1767104338908,0.01135022,88104.0,88098.0,0.0114]
[1767104339106,0.01135035,88103.0,88098.0,0.0114]
[1767104339279,0.01135022,88104.0,88098.0,0.0114]
[1767104340122,0.01135035,88103.0,88087.0,0.06811447]
[1767104340328,0.01135009,88105.0,88089.0,0.01135215]
[1767104340539,0.01135035,88103.0,88089.0,0.01135215]
[1767104340760,0.01135009,88105.0,88090.0,0.01135202]
[1767104340959,0.0004,88106.0,88095.0,0.01135138]
[1767104341166,0.0004,88106.0,88096.0,0.0114]
[1767104342166,0.01174996,88106.0,88096.0,0.0114]
[1767104342290,0.01135009,88105.0,88096.0,0.0114]
[1767104342487,0.01135022,88104.0,88090.0,0.15125202]
[1767104342691,0.01174996,88106.0,88091.0,0.0114]
[1767104342692,0.01135073,88100.0,88091.0,0.0114]
[1767104342886,0.01135086,88099.0,88091.0,0.01150714]
[1767104343126,0.01135099,88098.0,88091.0,0.01150714]
[1767104343704,0.01135086,88099.0,88091.0,0.01150714]
[1767104344132,0.01135112,88097.0,88091.0,0.01150714]
[1767104344444,0.01135099,88098.0,88091.0,0.01150714]
[1767104346025,0.01135112,88097.0,88091.0,0.00010714]
[1767104346230,0.01135073,88100.0,88091.0,0.01150714]
[1767104346526,0.01135099,88098.0,88091.0,0.01150714]
[1767104346732,0.01135086,88099.0,88091.0,0.01150714]
[1767104347392,0.01135099,88098.0,88091.0,0.01150714]
[1767104347551,0.01135112,88097.0,88091.0,0.01150714]
[1767104348114,0.01135099,88098.0,88091.0,0.01150714]
[1767104349468,0.01135073,88100.0,88091.0,0.01150714]
[1767104349669,0.01135112,88097.0,88091.0,0.01150714]
[1767104350487,0.01135151,88094.0,88091.0,0.00010714]
[1767104350617,0.01135151,88094.0,88089.0,0.0114]
[1767104350618,0.06811173,88091.0,88089.0,0.0114]
[1767104350817,0.01145895,88091.0,88077.0,0.0114865]
[1767104351058,0.00010706,88091.0,88080.0,0.01135331]
[1767104351261,0.00010706,88091.0,88081.0,0.01135318]
[1767104351638,0.00010706,88091.0,88079.0,0.01135344]
[1767104351879,0.00010706,88091.0,88080.0,0.01135331]
[1767104353695,0.00010706,88091.0,88079.0,0.01135344]
[1767104354261,0.00010706,88091.0,88080.0,0.01135331]
[1767104354464,0.00010706,88091.0,88082.0,0.01135305]
[1767104354667,0.00010706,88091.0,88086.0,0.15294254]
[1767104355442,0.00010706,88091.0,88086.0,0.14159]
[1767104356985,0.00010706,88091.0,88085.0,0.0114]
[1767104357594,0.00010706,88091.0,88087.0,0.15156]
[1767104358997,0.00010706,88091.0,88087.0,0.16291241]
[1767104359625,0.00010706,88091.0,88088.0,0.01135228]
[1767104359826,0.00010706,88091.0,88085.0,0.02275267]
[1767104359827,0.0004,88110.0,88090.0,0.15156]
[1767104360146,0.0004,88110.0,88105.0,0.06809998]
[1767104360320,0.0004,88110.0,88105.0,0.02275009]
[1767104360730,0.0004,88110.0,88105.0,0.0114]
[1767104360961,0.00035788,88108.0,88105.0,0.02275009]
[1767104361341,0.00035788,88108.0,88105.0,0.0114]
[1767104361717,0.00035788,88108.0,88105.0,0.02275009]
[1767104362823,0.00035788,88108.0,88105.0,0.0114]
[1767104363031,0.00035788,88108.0,88105.0,0.02275009]
[1767104363250,0.00035788,88108.0,88105.0,0.0114]
[1767104363493,0.00035788,88108.0,88105.0,0.010851]
[1767104363692,0.01135022,88104.0,88090.0,0.15156]
[1767104363824,0.1044256,88103.0,88089.0,0.01135215]
[1767104364164,0.1044256,88103.0,88091.0,0.02275189]
[1767104364371,0.1044256,88103.0,88087.0,0.01135241]
[1767104364567,0.01135073,88100.0,88092.0,0.0114]
[1767104364727,0.0113506,88101.0,88092.0,0.0114]
[1767104364912,0.01135048,88102.0,88092.0,0.0114]
[1767104365114,0.1044256,88103.0,88092.0,0.0114]
[1767104365314,0.11577595,88103.0,88092.0,0.0114]
[1767104365874,0.01135112,88097.0,88092.0,0.0114]
[1767104366035,0.01135099,88098.0,88092.0,0.0114]
[1767104366236,0.01135086,88099.0,88092.0,0.0114]
[1767104367571,0.01135048,88102.0,88092.0,0.0114]
[1767104367935,0.0113506,88101.0,88092.0,0.0114]
[1767104368690,0.01135048,88102.0,88092.0,0.0114]
[1767104369087,0.0113506,88101.0,88092.0,0.0114]
[1767104369249,0.01135048,88102.0,88092.0,0.0114]
[1767104370192,0.01135073,88100.0,88092.0,0.0114]
[1767104370767,0.06810444,88100.0,88092.0,0.0114]
[1767104370966,0.01135086,88099.0,88092.0,0.0114]
[1767104371363,0.0113506,88101.0,88092.0,0.0114]
[1767104371693,0.01135073,88100.0,88092.0,0.0114]
[1767104372091,0.01135048,88102.0,88081.0,0.15156]
[1767104372092,0.01135176,88092.0,88081.0,0.15156]
[1767104372304,0.05676774,88079.0,88077.0,1e-08]
[1767104372505,0.00010704,88079.0,88077.0,1e-08]
[1767104373464,0.0114,88085.0,88079.0,0.000106]
[1767104373760,0.01135279,88084.0,88077.0,1e-08]
[1767104373970,0.10428459,88087.0,88078.0,0.01135357]
[1767104374282,0.06810477,88100.0,88087.0,0.000106]
[1767104374569,0.01135099,88098.0,88087.0,0.000106]
[1767104374704,0.56485505,88100.0,88082.0,0.0114]
[1767104374910,0.1044256,88089.0,88082.0,0.010957]
[1767104376216,0.1044256,88089.0,88083.0,0.01135292]
[1767104376430,0.0002,88093.0,88089.0,0.000549]
[1767104376883,0.0002,88093.0,88084.0,0.01135279]
[1767104377108,0.0002,88093.0,88086.0,0.01135254]
[1767104377341,0.0002,88093.0,88088.0,0.01135228]
[1767104377803,0.0002,88093.0,88086.0,0.01135254]
[1767104378035,0.1044256,88099.0,88086.0,0.01135254]
[1767104378314,0.1044256,88099.0,88080.0,0.55345505]
[1767104378315,0.1044256,88099.0,88093.0,0.01135163]
[1767104378530,0.1044256,88099.0,88092.0,0.01135176]
[1767104378749,0.00019439,88106.0,88092.0,0.01135176]
[1767104378750,0.00019439,88106.0,88099.0,0.000899]
[1767104378970,0.00030149,88106.0,88103.0,0.06810201]
[1767104379196,2.662e-05,88112.0,88109.0,0.01134957]
[1767104379406,2.662e-05,88112.0,88108.0,0.0113497]
[1767104379873,2.662e-05,88112.0,88106.0,0.01134996]
[1767104380191,2.662e-05,88112.0,88103.0,0.0114]
[1767104380528,2.662e-05,88112.0,88105.0,0.01135009]
[1767104380878,2.662e-05,88112.0,88104.0,0.01135022]
[1767104381075,2.662e-05,88112.0,88106.0,0.01134996]
[1767104381280,2.662e-05,88112.0,88105.0,0.01135009]
[1767104381513,2.662e-05,88112.0,88106.0,0.01134996]
[1767104381719,2.662e-05,88112.0,88109.0,0.01134957]
[1767104381917,2.662e-05,88112.0,88104.0,0.01135022]
[1767104382290,2.662e-05,88112.0,88105.0,0.01135009]
[1767104382490,2.662e-05,88112.0,88106.0,0.01134996]
[1767104382712,2.662e-05,88112.0,88105.0,0.01135009]
[1767104382998,0.0002,88105.0,88103.0,0.0114]
[1767104383216,0.09534133,88105.0,88103.0,0.0114]
[1767104383734,0.0001,88117.0,88114.0,0.01134893]
[1767104384071,0.01134751,88125.0,88113.0,0.01134906]
[1767104384248,0.0114,88127.0,88114.0,0.01134893]
[1767104384425,4e-07,88118.0,88114.0,0.01134893]
[1767104385047,4e-07,88118.0,88115.0,0.0113488]
[1767104385634,4e-07,88118.0,88114.0,0.01134893]
[1767104385816,4e-07,88118.0,88115.0,0.0113488]
[1767104387106,0.0114,88127.0,88115.0,0.0113488]
[1767104387107,0.0001388,88125.0,88115.0,0.0113488]
[1767104387420,0.0001388,88125.0,88116.0,0.01134867]
[1767104387611,0.0001388,88125.0,88115.0,0.0113488]
[1767104387814,0.0114,88127.0,88115.0,0.0113488]
[1767104387815,0.07663924,88127.0,88117.0,0.01134854]
[1767104388515,0.07663924,88127.0,88116.0,0.01134867]
[1767104389218,0.06847981,88135.0,88117.0,0.55319716]
[1767104389418,0.00075916,88135.0,88123.0,0.01134777]
[1767104389718,0.01134635,88134.0,88121.0,0.01134803]
[1767104389943,0.01134635,88134.0,88120.0,0.01134816]
[1767104389944,0.00075916,88135.0,88125.0,0.01134751]
[1767104390079,0.00075916,88135.0,88129.0,0.011347]
[1767104390432,0.05672341,88148.0,88132.0,0.01134661]
[1767104390568,0.05683044,88148.0,88133.0,0.0114]
[1767104390826,0.01134532,88142.0,88133.0,0.0114]
[1767104391036,0.01134532,88142.0,88133.0,0.010851]
[1767104391273,0.01145158,88148.0,88133.0,0.010851]
[1767104391473,0.06808781,88146.0,88133.0,0.010851]
[1767104391686,0.00010703,88148.0,88133.0,0.02219748]
[1767104391906,0.00010703,88148.0,88141.0,0.01134545]
[1767104392149,0.0002,88164.0,88151.0,0.01134417]
[1767104392373,0.0002,88164.0,88155.0,0.01134365]
[1767104392596,0.0002,88164.0,88154.0,0.01134378]
[1767104392813,0.00055,88154.0,88143.0,0.0113452]
[1767104393023,0.06808781,88161.0,88147.0,0.01134468]
[1767104393240,0.03854668,88163.0,88149.0,0.01134442]
[1767104393467,0.02720406,88163.0,88151.0,0.01134417]
[1767104393688,0.01134288,88161.0,88152.0,0.0114]
[1767104393891,0.03854668,88163.0,88152.0,0.0114]
[1767104394106,0.03854668,88163.0,88152.0,0.02274404]
[1767104394107,0.02720406,88163.0,88152.0,0.02274404]
[1767104394320,0.02720406,88163.0,88154.0,0.01134378]
[1767104394525,0.02720406,88163.0,88155.0,0.01134365]
[1767104394782,0.02665506,88163.0,88160.0,0.14039]
[1767104395016,0.02665506,88163.0,88161.0,0.0114]
[1767104395864,1e-08,88163.0,88161.0,0.06811438]
[1767104396070,1e-08,88163.0,88161.0,0.0681143]
[1767104396294,0.0123008,88174.0,88173.0,0.14039]
[1767104396512,8e-07,88174.0,88173.0,0.15179]
[1767104396719,8e-07,88174.0,88173.0,0.139291]
[1767104396924,8e-07,88174.0,88165.0,0.06808781]
[1767104397138,8e-07,88174.0,88168.0,0.01134198]
[1767104397403,8e-07,88174.0,88171.0,0.15173159]
[1767104397614,8e-07,88174.0,88170.0,0.05670863]
[1767104397615,8e-07,88174.0,88169.0,0.0114]
[1767104398333,8e-07,88174.0,88164.0,0.01134249]
[1767104398535,8e-07,88174.0,88165.0,0.0114]
[1767104398941,0.01134201,88174.0,88165.0,0.0114]
[1767104399136,8e-07,88174.0,88165.0,0.0114]
[1767104399475,0.01134201,88174.0,88165.0,0.0114]
[1767104399779,0.01134201,88174.0,88092.0,0.05633129]
[1767104399780,0.0567067,88173.0,88155.0,0.01134365]
[1767104399936,0.01134172,88170.0,88160.0,0.06808781]
[1767104400127,0.05670811,88171.0,88161.0,0.0114]
[1767104400321,0.01134172,88170.0,88161.0,0.0114]
[1767104400804,0.01134172,88170.0,88160.0,0.06808781]
[1767104401006,0.01134172,88170.0,88162.0,0.0114]
[1767104401543,0.01134172,88170.0,88128.0,0.08421866]
[1767104401544,0.01134429,88150.0,88135.0,0.14039]
[1767104401766,0.01134339,88157.0,88141.0,0.01134545]
[1767104402084,0.01134339,88157.0,88140.0,0.01134558]
[1767104402085,0.0002,88157.0,88145.0,0.01134494]
[1767104402228,0.01134365,88155.0,88146.0,0.0114]
[1767104402446,0.01134352,88156.0,88146.0,0.0114]
[1767104402662,0.0002,88157.0,88146.0,0.0114]
[1767104402866,0.0002,88157.0,88152.0,0.01134404]
[1767104403065,0.01134201,88174.0,88162.0,0.01134275]
[1767104403261,8e-07,88174.0,88163.0,0.0114]
[1767104403461,0.01134201,88174.0,88163.0,0.0114]
[1767104403718,8e-07,88174.0,88163.0,0.0114]
[1767104403928,0.01134159,88171.0,88157.0,0.01134339]
[1767104404127,0.01134185,88169.0,88158.0,0.0114]
[1767104404328,0.01134211,88167.0,88152.0,0.01134404]
[1767104404528,0.01134211,88167.0,88153.0,0.02274391]
[1767104404529,0.01134236,88165.0,88153.0,0.02274391]
[1767104404734,0.01134236,88165.0,88154.0,0.0114]
[1767104405142,0.01134211,88167.0,88154.0,0.0114]
[1767104405547,0.01134224,88166.0,88154.0,0.0114]
[1767104405951,0.01134198,88168.0,88154.0,0.0114]
[1767104406114,8e-07,88174.0,88160.0,0.06805779]
[1767104406318,8e-07,88174.0,88163.0,0.01134262]
[1767104406756,8e-07,88174.0,88165.0,0.01134236]
[1767104406974,8e-07,88174.0,88163.0,0.01134262]
[1767104407179,8e-07,88174.0,88167.0,0.01134211]
[1767104407387,0.0114,88183.0,88171.0,0.01134159]
[1767104407595,0.01134018,88182.0,88169.0,0.01134185]
[1767104407796,0.01134082,88177.0,88165.0,0.01134236]
[1767104407925,0.01134069,88178.0,88164.0,0.01134249]
[1767104408331,0.01134031,88181.0,88167.0,0.01134211]
[1767104408531,0.01150699,88183.0,88171.0,0.01134159]
[1767104408870,0.00010699,88183.0,88172.0,0.02184917]
[1767104409040,0.00010699,88183.0,88177.0,0.06808781]
[1767104409863,0.06843452,88191.0,88177.0,0.06808781]
[1767104409864,0.0004,88189.0,88183.0,0.000106]
[1767104410130,0.0004,88191.0,88183.0,0.0114]
[1767104410476,0.01173902,88191.0,88183.0,0.0114]
[1767104410675,0.0004,88191.0,88183.0,0.0114]
[1767104410925,0.01133966,88186.0,88183.0,0.0114]
[1767104411225,0.01133915,88190.0,88183.0,0.0114]
[1767104411439,0.0004,88191.0,88186.0,0.000149]
[1767104411755,0.0004,88191.0,88183.0,0.0114]
[1767104411756,0.01021912,88197.0,88185.0,0.01133979]
[1767104412033,0.01133812,88198.0,88191.0,0.0004]
[1767104412238,0.01133799,88199.0,88192.0,0.0114]
[1767104412379,0.01133812,88198.0,88192.0,0.011]
[1767104412784,0.01133825,88197.0,88192.0,0.011]
[1767104412981,0.01133799,88199.0,88192.0,0.011]
[1767104413243,0.01199423,88201.0,88192.0,0.011]
[1767104413475,0.0006565,88201.0,88199.0,0.000549]
[1767104413666,0.0006565,88201.0,88185.0,0.10205838]
[1767104413667,0.0006565,88201.0,88200.0,0.0114]
[1767104413956,0.01133709,88206.0,88200.0,0.0114]
[1767104414177,0.01133632,88212.0,88201.0,0.00055]
[1767104414395,0.22669292,88226.0,88200.0,0.0114]
[1767104414396,0.01133491,88223.0,88206.0,0.15134]
[1767104414585,0.0759715,88243.0,88200.0,0.56414509]
[1767104414586,0.02411859,88242.0,88215.0,0.06808781]
[1767104414777,0.0610208,88259.0,88215.0,0.06808781]
[1767104414778,0.03039433,88264.0,88255.0,0.05665353]
[1767104414983,0.01133632,88268.0,88256.0,0.01099999]
[1767104414984,1e-08,88258.0,88256.0,0.01099999]
[1767104415120,0.01232643,88289.0,88267.0,0.01132926]
[1767104415321,0.01232643,88289.0,88275.0,0.13600508]
[1767104415322,0.01132656,88288.0,88275.0,0.13600508]
[1767104415568,0.03039433,88311.0,88275.0,0.13600508]
[1767104415569,0.33964542,88328.0,88284.0,0.15134]
[1767104415766,0.01132464,88303.0,88287.0,0.13600508]
[1767104415970,0.01132387,88309.0,88302.0,0.13600508]
[1767104416203,0.05661665,88314.0,88303.0,0.15138159]
[1767104416402,0.001131,88341.0,88332.0,0.01132092]
[1767104416585,0.01183827,88348.0,88314.0,0.00055]
[1767104416586,0.01120964,88342.0,88333.0,0.0568]
[1767104416799,0.01132041,88336.0,88334.0,0.14148]
[1767104416956,0.01132002,88339.0,88327.0,0.05]
[1767104416957,0.01132143,88328.0,88327.0,0.05]
[1767104417159,0.01132143,88328.0,88268.0,1.13290423]
[1767104417160,1.3e-07,88320.0,88300.0,0.2]
[1767104417381,0.01132131,88329.0,88315.0,0.13600508]
[1767104417608,4.3e-07,88339.0,88329.0,0.0004]
[1767104417808,4.3e-07,88339.0,88329.0,0.01184]
[1767104417809,0.01132045,88339.0,88329.0,0.01184]
[1767104418011,0.05660911,88325.0,88307.0,0.01132413]
[1767104418247,4.3e-07,88339.0,88324.0,0.01132195]
[1767104418446,2.97502466,88400.0,88336.0,0.13580508]
[1767104418447,0.55274509,88370.0,88336.0,0.13580508]
[1767104418586,0.01131849,88351.0,88337.0,0.01148]
[1767104418792,0.01131592,88371.0,88351.0,0.05659245]
[1767104419029,0.0113158,88372.0,88353.0,0.01131823]
[1767104419268,0.01131592,88371.0,88355.0,0.01131797]
[1767104419386,0.01131605,88370.0,88356.0,0.01148]
[1767104419589,0.01142277,88371.0,88360.0,0.01131733]
[1767104419590,0.00010685,88371.0,88360.0,0.01131733]
[1767104419787,0.011314,88386.0,88371.0,0.000106]
[1767104420029,0.01131439,88383.0,88372.0,0.01148]
[1767104420231,0.01131388,88387.0,88376.0,0.1448316]
[1767104420442,0.01131464,88381.0,88375.0,0.01148]
[1767104420588,0.01131413,88385.0,88366.0,0.01148]
[1767104420589,0.01131644,88367.0,88366.0,0.01148]
[1767104420794,0.01131708,88362.0,88356.0,0.1448316]
[1767104421128,0.01131733,88360.0,88356.0,0.1449906]
[1767104421337,0.01131656,88366.0,88356.0,0.1449906]
[1767104421338,0.01131695,88363.0,88358.0,0.1448316]
[1767104421514,0.01131721,88361.0,88360.0,0.1448316]
[1767104421715,0.01131721,88361.0,88356.0,0.0002]
[1767104421914,0.01131746,88359.0,88356.0,0.0002]
[1767104422140,0.01131669,88365.0,88356.0,0.0002]
[1767104422141,0.01131554,88374.0,88357.0,0.1448316]
[1767104422319,0.01151528,88376.0,88359.0,0.01186646]
[1767104422534,0.01151528,88376.0,88359.0,0.000549]
[1767104422535,0.01131567,88373.0,88359.0,0.000549]
[1767104422736,0.01131721,88361.0,88356.0,0.0002]
[1767104422938,0.01131695,88363.0,88356.0,0.0002]
[1767104423137,0.01131708,88362.0,88357.0,0.1448316]
[1767104423521,0.01032004,88343.0,88336.0,0.1448316]
[1767104423821,0.01132002,88339.0,88336.0,0.00010683]
[1767104424022,0.01132028,88337.0,88326.0,0.0002]
[1767104424295,0.00010675,88337.0,88326.0,0.0002]
[1767104424505,0.01132131,88329.0,88326.0,0.00015909]
[1767104424664,0.01132182,88325.0,88315.0,0.01148]
[1767104425094,0.01132272,88318.0,88312.0,0.0002]
[1767104425291,0.0113231,88315.0,88312.0,0.0002]
[1767104425467,0.01132425,88306.0,88300.0,0.0002]
[1767104425669,0.01132464,88303.0,88297.0,0.0005587]
[1767104425989,0.01132502,88300.0,88297.0,0.0005587]
[1767104426190,0.06795053,88300.0,88297.0,0.0005587]
[1767104426393,0.01132682,88286.0,88269.0,0.011329]
[1767104426595,0.01132733,88282.0,88269.0,0.00035695]
[1767104426772,0.01132695,88285.0,88271.0,0.01132874]
[1767104426974,0.01132669,88287.0,88271.0,0.01132874]
[1767104427272,0.01132669,88287.0,88270.0,0.01148]
[1767104427273,0.01132708,88284.0,88270.0,0.01148]
[1767104427518,0.01132669,88287.0,88270.0,0.0115645]
[1767104427519,0.01132797,88277.0,88270.0,0.0115645]
[1767104427673,0.0113281,88276.0,88270.0,0.0115645]
[1767104427870,0.05664374,88271.0,88267.0,0.0004]
[1767104428069,0.011329,88269.0,88256.0,0.01148]
[1767104428276,0.01168452,88271.0,88260.0,0.0002]
[1767104428483,0.0113281,88276.0,88271.0,0.00019322]
[1767104428675,0.0113281,88276.0,88271.0,0.00030025]
[1767104428906,0.01132836,88274.0,88271.0,0.00010703]
[1767104429625,0.05664246,88273.0,88271.0,0.00010703]
[1767104429808,0.0113281,88276.0,88271.0,0.00010703]
[1767104430158,0.0002,88280.0,88276.0,0.0115211]
[1767104430453,0.01132669,88287.0,88276.0,0.000193]
[1767104430621,0.07245433,88283.0,88271.0,3e-08]
[1767104430789,0.07245433,88286.0,88274.0,0.01132836]
[1767104430985,0.07245433,88286.0,88271.0,0.05664343]
[1767104431240,0.01132682,88286.0,88273.0,0.01132849]
[1767104431459,0.01132631,88290.0,88277.0,0.01132797]
[1767104431748,0.01148,88292.0,88271.0,3e-08]
[1767104431749,0.01132682,88286.0,88271.0,3e-08]
[1767104431924,0.000449,88277.0,88271.0,3e-08]
[1767104432305,0.01132772,88279.0,88271.0,3e-08]
[1767104432509,0.01132836,88274.0,88271.0,3e-08]
[1767104432722,0.01132797,88277.0,88271.0,3e-08]
[1767104433110,0.01132823,88275.0,88271.0,3e-08]
[1767104433652,0.01132772,88279.0,88275.0,0.0001]
[1767104433810,0.01132759,88280.0,88271.0,3e-08]
[1767104434015,0.14042479,88274.0,88271.0,3e-08]
[1767104434424,0.14042479,88274.0,88260.0,0.00015845]
[1767104434425,0.05665016,88261.0,88260.0,1e-08]
[1767104434625,0.05675677,88261.0,88260.0,1e-08]
[1767104434857,0.00010661,88261.0,88260.0,1e-08]
[1767104436365,0.01148,88269.0,88261.0,0.000106]
[1767104436572,0.022809,88269.0,88261.0,0.00035578]
[1767104436779,0.01148,88269.0,88261.0,0.00035578]
[1767104436939,0.01132913,88268.0,88261.0,0.00035578]
[1767104437140,0.01132977,88263.0,88260.0,1e-08]
[1767104437361,0.06833508,88263.0,88260.0,1e-08]
[1767104437906,0.00035644,88263.0,88260.0,1e-08]
[1767104438057,0.00025644,88263.0,88260.0,1e-08]
[1767104438263,0.01158621,88263.0,88260.0,1e-08]
[1767104438617,0.05664952,88262.0,88260.0,1e-08]
[1767104438791,0.01133221,88244.0,88225.0,0.05667292]
[1767104439004,0.05665914,88247.0,88227.0,0.06800611]
[1767104439145,0.01133247,88242.0,88231.0,0.0002]
[1767104439546,0.01133247,88242.0,88226.0,0.000886]
[1767104439763,0.01133272,88240.0,88226.0,0.000886]
[1767104439944,0.01133298,88238.0,88226.0,0.000886]
[1767104440166,0.01133311,88237.0,88226.0,0.000886]
[1767104440378,0.02281285,88239.0,88226.0,0.000886]
[1767104440739,0.07245433,88228.0,88215.0,0.01133594]
[1767104441062,0.01133542,88219.0,88216.0,0.0002]
[1767104441421,0.06801215,88220.0,88216.0,0.0002]
[1767104441422,0.01133529,88220.0,88216.0,0.0002]
[1767104441622,0.01133504,88222.0,88208.0,0.01133684]
[1767104441828,0.07245433,88214.0,88207.0,0.04355271]
[1767104441988,0.0002,88217.0,88214.0,0.001099]
[1767104442669,0.0002,88217.0,88213.0,0.01133619]
[1767104442853,0.0002,88217.0,88211.0,0.06801864]
[1767104442854,0.0002,88217.0,88211.0,0.01133645]
[1767104443052,0.0002,88217.0,88202.0,0.01133761]
[1767104443353,0.0002,88217.0,88203.0,0.02281748]
[1767104443560,0.0002,88217.0,88204.0,0.01133735]
[1767104443732,0.0002,88217.0,88205.0,0.01133722]
[1767104443946,0.07245433,88213.0,88206.0,0.01133709]
[1767104444140,0.0002,88217.0,88213.0,0.001099]
[1767104444341,0.01133388,88231.0,88217.0,0.01133568]
[1767104444544,0.07245433,88229.0,88220.0,0.80850928]
[1767104444866,0.07245433,88229.0,88215.0,0.06801535]
[1767104444867,0.07245433,88229.0,88218.0,0.01133555]
[1767104445027,0.07245433,88229.0,88213.0,0.06801705]
[1767104445217,0.07245433,88229.0,88215.0,0.01133594]
[1767104445409,0.07245433,88229.0,88217.0,0.06801395]
[1767104445614,0.07245433,88229.0,88215.0,0.06801552]
[1767104445810,0.01133452,88226.0,88212.0,0.01148]
[1767104446051,0.07245433,88229.0,88217.0,0.01133568]
[1767104446254,0.01133208,88245.0,88229.0,0.00055]
[1767104446411,0.07245433,88241.0,88232.0,0.01133375]
[1767104446613,0.07245433,88241.0,88166.0,0.07245433]
[1767104446819,0.07245433,88241.0,88221.0,0.01133516]
[1767104446820,0.0836053,88234.0,88221.0,0.01133516]
[1767104447088,0.0836053,88234.0,88222.0,0.01133504]
[1767104447089,0.07227181,88234.0,88222.0,0.01133504]
[1767104447244,0.07227181,88234.0,88220.0,0.07949146]
[1767104447245,0.0836053,88234.0,88220.0,0.01148]
[1767104447446,0.01133375,88232.0,88220.0,0.01148]
[1767104447864,0.0836053,88234.0,88220.0,0.01148]
[1767104448045,0.01133362,88233.0,88220.0,0.01148]
[1767104448199,0.01133375,88232.0,88220.0,0.01148]
[1767104448399,0.01133362,88233.0,88220.0,0.01148]
[1767104448623,0.01133362,88233.0,88220.0,0.02281529]
[1767104449317,0.0836053,88234.0,88220.0,0.02281529]
[1767104449318,0.07227181,88234.0,88222.0,0.01133504]
[1767104449523,0.07227181,88234.0,88223.0,0.06800885]
[1767104449721,0.01153285,88239.0,88223.0,0.06800885]
[1767104449722,0.07265433,88239.0,88234.0,0.000549]
[1767104449924,0.07265433,88239.0,88229.0,0.01133414]
[1767104450450,0.07265433,88239.0,88230.0,0.01133401]
[1767104450828,0.0002,88239.0,88230.0,0.05667006]
[1767104450992,0.01133182,88247.0,88239.0,0.000549]
[1767104451189,0.056663,88241.0,88223.0,0.01133491]
[1767104451434,0.01133324,88236.0,88224.0,0.01148]
[1767104451652,0.07245433,88229.0,88210.0,0.01133658]
[1767104451804,0.00055,88224.0,88215.0,0.01148]
[1767104452230,0.01148,88236.0,88220.0,0.01133529]
[1767104452451,0.01133337,88235.0,88221.0,0.01133516]
[1767104452625,0.0002,88234.0,88220.0,0.81994457]
[1767104452829,0.06820102,88234.0,88220.0,0.0001]
[1767104453038,0.0002,88234.0,88224.0,0.01133478]
[1767104453354,0.0113326,88241.0,88224.0,0.01133478]
[1767104453355,0.0113326,88241.0,88227.0,0.01133439]
[1767104453655,0.01133337,88235.0,88220.0,0.0001]
[1767104453855,0.01133298,88238.0,88222.0,0.01133504]
[1767104454038,0.01133285,88239.0,88225.0,0.01133465]
[1767104454221,0.01133118,88252.0,88231.0,0.01133388]
[1767104454395,0.0113317,88248.0,88234.0,0.01133349]
[1767104454596,0.01133144,88250.0,88235.0,0.01133337]
[1767104454821,0.01133157,88249.0,88235.0,0.01133337]
[1767104455057,0.0002,88251.0,88232.0,0.01148]
[1767104455256,0.0105503,88250.0,88236.0,0.01133324]
[1767104455518,0.01153131,88251.0,88238.0,0.01133298]
[1767104455732,0.0002,88251.0,88241.0,0.0113326]
[1767104455905,0.0002,88251.0,88240.0,0.01133272]
[1767104456057,0.0002,88251.0,88241.0,0.0113326]
[1767104456264,0.0002,88251.0,88239.0,0.01133285]
[1767104456463,0.0002,88251.0,88240.0,0.01133272]
[1767104456680,0.0002,88251.0,88235.0,0.01133337]
[1767104456851,0.0002,88251.0,88243.0,0.01133234]
[1767104457207,0.01132977,88263.0,88251.0,0.0002]
[1767104457359,0.01055981,88262.0,88251.0,0.0002]
[1767104457564,0.01148,88265.0,88250.0,0.80850928]
[1767104457761,0.0113299,88262.0,88250.0,0.80850928]
[1767104457984,0.01055988,88261.0,88250.0,0.80850928]
[1767104458183,0.01132977,88263.0,88250.0,0.80850928]
[1767104458382,0.01056146,88262.0,88250.0,0.81984072]
[1767104458582,0.01148,88265.0,88251.0,0.01133131]
[1767104458907,0.01132579,88294.0,88279.0,0.01132772]
[1767104459129,0.0113249,88301.0,88285.0,0.01132695]
[1767104459329,0.01132438,88305.0,88290.0,0.80850928]
[1767104459509,0.05662046,88308.0,88290.0,0.80850928]
[1767104459510,0.011324,88308.0,88291.0,0.01148]
[1767104459713,0.01132566,88295.0,88290.0,0.80850928]
[1767104459890,0.01132566,88295.0,88272.0,0.04532]
[1767104459891,0.00055,88290.0,88272.0,0.04532]
[1767104460095,0.01132695,88285.0,88273.0,0.01148]
[1767104460323,0.07245433,88289.0,88241.0,0.0113326]
[1767104460324,0.00943038,88266.0,88241.0,0.0113326]
[1767104460510,0.00943038,88266.0,88239.0,0.01133285]
[1767104460511,0.01133041,88258.0,88255.0,0.01148]